fUSD/lending_fUSD_20260529
["ID","MTS","AMOUNT","RATE_DAILY","PERIOD"]
[423312817,1780050645000,-151.0,0.000149,2]
[423312811,1780050645000,-360.97910646,0.000149,2]
[423312822,1780050645000,-154.674576,0.000149,2]
[423312824,1780050645000,-500.0,0.000149,5]
[423312823,1780050645000,-154.674576,0.000149,2]
[423312825,1780050645000,-8049.75467538,0.000149,2]
[423312827,1780050645000,-2540.86790998,0.000149,2]
[423312783,1780050645000,-500.0,0.00014864,2]
[423312826,1780050645000,-1174.82605629,0.000149,2]
[423312805,1780050645000,-150.0,0.00014893,2]
[423312804,1780050645000,-150.0,0.00014882,2]
[423312815,1780050645000,-617.382173,0.000149,2]
[423312800,1780050645000,-2000.0,0.0001488,2]
[423312784,1780050645000,-500.0,0.00014864,2]
[423312808,1780050645000,-715.48,0.00014899,2]
[423312781,1780050645000,-500.0,0.00014864,2]
[423312787,1780050645000,-500.0,0.00014864,2]
[423312786,1780050645000,-500.0,0.00014864,2]
[423312788,1780050645000,-500.0,0.00014864,2]
[423312789,1780050645000,-500.0,0.00014864,2]
[423312790,1780050645000,-500.0,0.00014864,2]
[423312792,1780050645000,-500.0,0.00014864,2]
[423312793,1780050645000,-500.0,0.00014864,2]
[423312780,1780050645000,-500.0,0.00014864,2]
[423312791,1780050645000,-500.0,0.00014864,2]
[423312798,1780050645000,-150.0,0.00014871,2]
[423312795,1780050645000,-500.0,0.00014864,2]
[423312803,1780050645000,-150.0,0.00014881,2]
[423312802,1780050645000,-426.0,0.00014881,2]
[423312799,1780050645000,-163.0,0.0001488,2]
[423312801,1780050645000,-195.03198619,0.0001488,2]
[423312796,1780050645000,-295.01071669,0.00014864,2]
[423312794,1780050645000,-500.0,0.00014864,2]
[423312797,1780050645000,-195.03198619,0.00014865,2]
[423312855,1780050648000,-1519.08,0.00014908,2]
[423312872,1780050648000,-500.0,0.00014908,2]
[423312861,1780050648000,-958.38,0.00014908,2]
[423312862,1780050648000,-958.38,0.00014908,2]
[423312863,1780050648000,-958.38,0.00014908,2]
[423312865,1780050648000,-958.38,0.00014908,2]
[423312864,1780050648000,-958.38,0.00014908,2]
[423312870,1780050648000,-500.0,0.00014908,2]
[423312857,1780050648000,-500.0,0.00014908,2]
[423312866,1780050648000,-958.38,0.00014908,2]
[423312869,1780050648000,-500.0,0.00014908,2]
[423312873,1780050648000,-500.0,0.00014908,2]
[423312868,1780050648000,-958.56677457,0.00014908,2]
[423312867,1780050648000,-958.38,0.00014908,2]
[423312885,1780050648000,-500.0,0.00014908,2]
[423312875,1780050648000,-211.72522284,0.00014908,2]
[423312876,1780050648000,-878.02,0.00014908,2]
[423312886,1780050648000,-500.0,0.00014908,2]
[423312874,1780050648000,-500.0,0.00014908,2]
[423312851,1780050648000,-1519.08,0.00014908,2]
[423312871,1780050648000,-500.0,0.00014908,2]
[423312832,1780050648000,-17278.77122565,0.000149,2]
[423312834,1780050648000,-637.37,0.00014908,2]
[423312858,1780050648000,-500.0,0.00014908,2]
[423312877,1780050648000,-878.02,0.00014908,2]
[423312833,1780050648000,-1244.23221022,0.000149,2]
[423312847,1780050648000,-500.0,0.00014908,2]
[423312839,1780050648000,-812.78,0.00014908,2]
[423312837,1780050648000,-637.37,0.00014908,2]
[423312846,1780050648000,-500.0,0.00014908,2]
[423312838,1780050648000,-812.78,0.00014908,2]
[423312840,1780050648000,-812.78,0.00014908,2]
[423312835,1780050648000,-637.37,0.00014908,2]
[423312845,1780050648000,-790.5,0.00014908,2]
[423312843,1780050648000,-790.5,0.00014908,2]
[423312842,1780050648000,-790.5,0.00014908,2]
[423312836,1780050648000,-637.37,0.00014908,2]
[423312841,1780050648000,-812.78,0.00014908,2]
[423312852,1780050648000,-1519.08,0.00014908,2]
[423312850,1780050648000,-1519.08,0.00014908,2]
[423312860,1780050648000,-500.0,0.00014908,2]
[423312848,1780050648000,-422.01,0.00014908,2]
[423312849,1780050648000,-1519.08,0.00014908,2]
[423312856,1780050648000,-1519.23240084,0.00014908,2]
[423312859,1780050648000,-500.0,0.00014908,2]
[423312854,1780050648000,-1519.08,0.00014908,2]
[423312878,1780050648000,-878.02,0.00014908,2]
[423312844,1780050648000,-790.5,0.00014908,2]
[423312884,1780050648000,-500.0,0.00014908,2]
[423312908,1780050648000,-500.0,0.00014908,2]
[423312909,1780050648000,-500.0,0.00014908,2]
[423312910,1780050648000,-500.0,0.00014908,2]
[423312912,1780050648000,-500.0,0.00014908,2]
[423312914,1780050648000,-500.0,0.00014908,2]
[423312915,1780050648000,-500.0,0.00014908,2]
[423312917,1780050648000,-500.0,0.00014908,2]
[423312913,1780050648000,-500.0,0.00014908,2]
[423312916,1780050648000,-500.0,0.00014908,2]
[423312923,1780050648000,-500.0,0.00014908,2]
[423312905,1780050648000,-500.0,0.00014908,2]
[423312919,1780050648000,-500.0,0.00014908,2]
[423312922,1780050648000,-500.0,0.00014908,2]
[423312920,1780050648000,-500.0,0.00014908,2]
[423312918,1780050648000,-500.0,0.00014908,2]
[423312925,1780050648000,-500.0,0.00014908,2]
[423312924,1780050648000,-500.0,0.00014908,2]
[423312927,1780050648000,-500.0,0.00014908,2]
[423312926,1780050648000,-500.0,0.00014908,2]
[423312928,1780050648000,-500.0,0.00014908,2]
[423312929,1780050648000,-500.0,0.00014908,2]
[423312880,1780050648000,-500.0,0.00014908,2]
[423312921,1780050648000,-500.0,0.00014908,2]
[423312906,1780050648000,-500.0,0.00014908,2]
[423312853,1780050648000,-1519.08,0.00014908,2]
[423312907,1780050648000,-500.0,0.00014908,2]
[423312883,1780050648000,-500.0,0.00014908,2]
[423312903,1780050648000,-500.0,0.00014908,2]
[423312882,1780050648000,-500.0,0.00014908,2]
[423312881,1780050648000,-500.0,0.00014908,2]
[423312887,1780050648000,-500.0,0.00014908,2]
[423312889,1780050648000,-500.0,0.00014908,2]
[423312888,1780050648000,-500.0,0.00014908,2]
[423312898,1780050648000,-500.0,0.00014908,2]
[423312899,1780050648000,-500.0,0.00014908,2]
[423312892,1780050648000,-500.0,0.00014908,2]
[423312895,1780050648000,-500.0,0.00014908,2]
[423312879,1780050648000,-878.02,0.00014908,2]
[423312891,1780050648000,-500.0,0.00014908,2]
[423312896,1780050648000,-500.0,0.00014908,2]
[423312902,1780050648000,-500.0,0.00014908,2]
[423312900,1780050648000,-500.0,0.00014908,2]
[423312911,1780050648000,-500.0,0.00014908,2]
[423312904,1780050648000,-500.0,0.00014908,2]
[423312894,1780050648000,-500.0,0.00014908,2]
[423312893,1780050648000,-500.0,0.00014908,2]
[423312890,1780050648000,-500.0,0.00014908,2]
[423312897,1780050648000,-500.0,0.00014908,2]
[423312901,1780050648000,-500.0,0.00014908,2]
[423312954,1780050649000,-500.0,0.00014908,2]
[423312952,1780050649000,-500.0,0.00014908,2]
[423312949,1780050649000,-500.0,0.00014908,2]
[423312951,1780050649000,-500.0,0.00014908,2]
[423312958,1780050649000,-500.0,0.00014908,2]
[423312953,1780050649000,-500.0,0.00014908,2]
[423312955,1780050649000,-500.0,0.00014908,2]
[423312959,1780050649000,-500.0,0.00014908,2]
[423312967,1780050649000,-28867.7752904,0.00014909,2]
[423312975,1780050649000,-150.0,0.00014917,2]
[423312969,1780050649000,-151.0,0.00014909,2]
[423312964,1780050649000,-7812.2462843,0.00014909,2]
[423312965,1780050649000,-151.0,0.00014909,2]
[423312974,1780050649000,-79404.5535336,0.00014913,2]
[423312973,1780050649000,-216.7602397,0.00014913,2]
[423312968,1780050649000,-151.0,0.00014909,2]
[423312966,1780050649000,-32650.585473,0.00014909,2]
[423312956,1780050649000,-500.0,0.00014908,2]
[423312957,1780050649000,-500.0,0.00014908,2]
[423312962,1780050649000,-165.86041902,0.00014908,2]
[423312944,1780050649000,-500.0,0.00014908,2]
[423312961,1780050649000,-500.0,0.00014908,2]
[423312935,1780050649000,-500.0,0.00014908,2]
[423312930,1780050649000,-500.0,0.00014908,2]
[423312934,1780050649000,-500.0,0.00014908,2]
[423312931,1780050649000,-500.0,0.00014908,2]
[423312932,1780050649000,-500.0,0.00014908,2]
[423312933,1780050649000,-500.0,0.00014908,2]
[423312937,1780050649000,-500.0,0.00014908,2]
[423312940,1780050649000,-500.0,0.00014908,2]
[423312936,1780050649000,-500.0,0.00014908,2]
[423312941,1780050649000,-500.0,0.00014908,2]
[423312972,1780050649000,-9968.0903895,0.00014913,2]
[423312939,1780050649000,-500.0,0.00014908,2]
[423312943,1780050649000,-500.0,0.00014908,2]
[423312942,1780050649000,-500.0,0.00014908,2]
[423312938,1780050649000,-500.0,0.00014908,2]
[423312947,1780050649000,-151.0,0.00014798,2]
[423312948,1780050649000,-129.78730559,0.00014908,2]
[423312946,1780050649000,-152.0,0.00011799,7]
[423312950,1780050649000,-500.0,0.00014908,2]
[423312960,1780050649000,-500.0,0.00014908,2]
[423312963,1780050649000,-1034333.1973074,0.00014909,2]
[423312945,1780050649000,-370.21269441,0.00014908,2]
[423312971,1780050649000,-1253.5700511,0.00014913,2]
[423312998,1780050649000,-812.78,0.0001498,2]
[423313011,1780050649000,-878.02,0.0001498,2]
[423313001,1780050649000,-812.78,0.0001498,2]
[423313012,1780050649000,-878.02,0.0001498,2]
[423313002,1780050649000,-812.78863491,0.0001498,2]
[423313004,1780050649000,-790.5,0.0001498,2]
[423313007,1780050649000,-790.66918433,0.0001498,2]
[423313000,1780050649000,-812.78,0.0001498,2]
[423313005,1780050649000,-790.5,0.0001498,2]
[423313003,1780050649000,-790.5,0.0001498,2]
[423313008,1780050649000,-500.0,0.0001498,2]
[423313010,1780050649000,-878.02,0.0001498,2]
[423313009,1780050649000,-377.70945128,0.0001498,2]
[423313014,1780050649000,-878.1396255,0.0001498,2]
[423313015,1780050649000,-1638.37,0.00014983,2]
[423313017,1780050649000,-1638.37,0.00014986,2]
[423313016,1780050649000,-19744.1140707,0.00014986,2]
[423313013,1780050649000,-878.02,0.0001498,2]
[423312970,1780050649000,-195.03198619,0.00014911,2]
[423312993,1780050649000,-637.37,0.0001498,2]
[423312997,1780050649000,-637.40424159,0.0001498,2]
[423313006,1780050649000,-790.5,0.0001498,2]
[423312994,1780050649000,-637.37,0.0001498,2]
[423312996,1780050649000,-637.37,0.0001498,2]
[423312977,1780050649000,-2000.0,0.0001492,2]
[423312987,1780050649000,-150.0,0.00014951,2]
[423312976,1780050649000,-150.0,0.00014918,2]
[423312979,1780050649000,-439.313529,0.0001492,2]
[423312985,1780050649000,-150.0,0.00014941,2]
[423312980,1780050649000,-439.313529,0.0001492,2]
[423312983,1780050649000,-195.03198619,0.00014926,2]
[423312984,1780050649000,-150.0,0.00014939,2]
[423312982,1780050649000,-151.0,0.0001492,2]
[423312986,1780050649000,-195.03198619,0.00014941,2]
[423312981,1780050649000,-439.313529,0.0001492,2]
[423312990,1780050649000,-350.0,0.00014964,2]
[423312989,1780050649000,-195.03198619,0.00014956,2]
[423312999,1780050649000,-812.78,0.0001498,2]
[423312988,1780050649000,-2351.0,0.00014952,2]
[423312992,1780050649000,-195.03198619,0.00014971,2]
[423312978,1780050649000,-439.313529,0.0001492,2]
[423312991,1780050649000,-2000.0,0.0001497,2]
[423312995,1780050649000,-637.37,0.0001498,2]
[423313037,1780050650000,-715.48,0.00014999,2]
[423313033,1780050650000,-715.48,0.00014999,2]
[423313035,1780050650000,-715.48,0.00014999,2]
[423313036,1780050650000,-715.48,0.00014999,2]
[423313039,1780050650000,-715.48,0.00014999,2]
[423313043,1780050650000,-1638.37,0.00014999,2]
[423313040,1780050650000,-715.48,0.00014999,2]
[423313044,1780050650000,-1638.37,0.00014999,2]
[423313031,1780050650000,-151.0,0.00014997,2]
[423313041,1780050650000,-715.48,0.00014999,2]
[423313049,1780050650000,-1638.37,0.00014999,2]
[423313034,1780050650000,-715.48,0.00014999,2]
[423313021,1780050650000,-154.07871726,0.00014986,2]
[423313032,1780050650000,-715.48,0.00014998,2]
[423313029,1780050650000,-151.0,0.00014997,2]
[423313026,1780050650000,-195.03198619,0.00014986,2]
[423313028,1780050650000,-166.26750865,0.0001499,2]
[423313027,1780050650000,-1638.37,0.00014988,2]
[423313025,1780050650000,-152.46068316,0.00014986,2]
[423313022,1780050650000,-227.52200583,0.00014986,2]
[423313020,1780050650000,-276.9758734,0.00014986,2]
[423313019,1780050650000,-217.23219505,0.00014986,2]
[423313023,1780050650000,-154.125904,0.00014986,2]
[423313018,1780050650000,-150.24304197,0.00014986,2]
[423313024,1780050650000,-153.65997093,0.00014986,2]
[423313045,1780050650000,-1638.37,0.00014999,2]
[423313030,1780050650000,-151.0,0.00014997,2]
[423313046,1780050650000,-1638.37,0.00014999,2]
[423313038,1780050650000,-715.48,0.00014999,2]
[423313047,1780050650000,-1638.37,0.00014999,2]
[423313042,1780050650000,-715.64315077,0.00014999,2]
[423313075,1780050650000,-2130.0,0.00015,2]
[423313073,1780050650000,-42254.11907311,0.00015,2]
[423313074,1780050650000,-27525.99196174,0.00015,2]
[423313072,1780050650000,-11892.52332838,0.00015,2]
[423313064,1780050650000,-300.0,0.00014999,2]
[423313063,1780050650000,-368.15567832,0.00014999,2]
[423313066,1780050650000,-300.0,0.00014999,2]
[423313070,1780050650000,-2789121.93799814,0.00015,2]
[423313065,1780050650000,-300.0,0.00014999,2]
[423313068,1780050650000,-300.0,0.00014999,2]
[423313069,1780050650000,-310.00034415,0.00014999,2]
[423313067,1780050650000,-300.0,0.00014999,2]
[423313071,1780050650000,-151.0,0.00014909,2]
[423313060,1780050650000,-154.674576,0.00014999,2]
[423313050,1780050650000,-1638.5173129,0.00014999,2]
[423313062,1780050650000,-154.674576,0.00014999,2]
[423313052,1780050650000,-617.382173,0.00014999,2]
[423313051,1780050650000,-407.36603384,0.00014999,2]
[423313053,1780050650000,-617.382173,0.00014999,2]
[423313054,1780050650000,-617.382173,0.00014999,2]
[423313048,1780050650000,-1638.37,0.00014999,2]
[423313059,1780050650000,-154.674576,0.00014999,2]
[423313056,1780050650000,-151.0,0.00014999,2]
[423313055,1780050650000,-617.382173,0.00014999,2]
[423313057,1780050650000,-151.0,0.00014999,2]
[423313061,1780050650000,-154.674576,0.00014999,2]
[423313058,1780050650000,-151.0,0.00014999,2]
[423313076,1780050651000,-517.63338623,0.00012406,2]
[423313077,1780050651000,-297.93037825,0.00013531,2]
[423313078,1780050651000,-625.54012998,0.00013531,2]
[423313080,1780050651000,-136.85083962,0.00013697,3]
[423313081,1780050651000,-545.1400985,0.00013697,3]
[423313079,1780050651000,-286.20916038,0.00013531,2]
[423313082,1780050651000,-269.98204973,0.00013697,3]
[423313084,1780050665000,94.09661017,9.946e-05,2]
[423313083,1780050665000,206.73811975,9.946e-05,2]
[423313085,1780050679000,150.0,0.00010093,2]
[423313086,1780050738000,-500.0,0.00011523,2]
[423313088,1780050739000,193.0,9.946e-05,2]
[423313087,1780050739000,606.48174541,9.946e-05,2]
[423313089,1780050739000,250.0,9.946e-05,2]
[423313091,1780050739000,306.67925589,9.994e-05,2]
[423313090,1780050739000,250.0,9.28e-05,2]
[423313092,1780050740000,500.0,9.946e-05,2]
[423313093,1780050767000,-215.5484138,0.00011421,2]
[423313094,1780050791000,1329.24584964,0.00028082,120]
[423313096,1780050815000,888.0,0.00028082,120]
[423313095,1780050815000,-209.09056759,0.00011421,2]
[423313098,1780050817000,500.0,0.00028081,120]
[423313097,1780050817000,500.0,0.00025613,120]
[423313099,1780050829000,4549.161377,0.00025333,120]
[423313100,1780050830000,1000.0,0.0002808,120]
[423313101,1780050839000,888.0,0.00028082,120]
[423313105,1780050870000,888.0,0.00028082,120]
[423313104,1780050870000,-500.0,0.00011229,2]
[423313106,1780050871000,888.0,0.00028082,120]
[423313107,1780050872000,888.0,0.00028082,120]
[423313108,1780050873000,888.0,0.00028082,120]
[423313109,1780050900000,888.0,0.00028082,120]
[423313111,1780050901000,888.0,0.00028082,120]
[423313110,1780050901000,-71.63,0.00011229,2]
[423313112,1780050902000,888.0,0.00028082,120]
[423313113,1780050902000,888.0,0.00028082,120]
[423313115,1780050903000,888.0,0.00028082,120]
[423313114,1780050903000,888.0,0.00028082,120]
[423313116,1780050904000,888.0,0.00028082,120]
[423313117,1780050911000,888.0,0.00028082,120]
[423313118,1780050918000,888.0,0.00028082,120]
[423313120,1780050947000,888.0,0.00028082,120]
[423313119,1780050947000,-500.0,0.00011291,2]
[423313121,1780050948000,888.0,0.00028082,120]
[423313123,1780050950000,888.0,0.00028082,120]
[423313122,1780050950000,888.0,0.00028082,120]
[423313124,1780050951000,888.0,0.00028082,120]
[423313126,1780050976000,888.0,0.00028082,120]
[423313125,1780050976000,-71.63,0.00011291,2]
[423313127,1780050977000,888.0,0.00028082,120]
[423313128,1780050978000,888.0,0.00028082,120]
[423313130,1780050979000,888.0,0.00028082,120]
[423313129,1780050979000,888.0,0.00028082,120]
[423313131,1780050985000,888.0,0.00028082,120]
[423313132,1780050992000,888.0,0.00028082,120]
[423313133,1780051000000,888.0,0.00028082,120]
[423313134,1780051023000,-451.11,0.00011353,2]
[423313136,1780051026000,888.0,0.00028082,120]
[423313135,1780051026000,888.0,0.00028082,120]
[423313137,1780051027000,888.0,0.00028082,120]
[423313138,1780051028000,888.0,0.00028082,120]
[423313139,1780051051000,888.0,0.00028082,120]
[423313141,1780051052000,888.0,0.00028082,120]
[423313140,1780051052000,-120.52,0.00011353,2]
[423313142,1780051053000,888.0,0.00028082,120]
[423313143,1780051054000,888.0,0.00028082,120]
[423313144,1780051057000,888.0,0.00028082,120]
[423313145,1780051058000,888.0,0.00028082,120]
[423313146,1780051063000,888.0,0.00028082,120]
[423313147,1780051073000,888.0,0.00028082,120]
[423313149,1780051100000,-500.0,0.00011415,2]
[423313150,1780051106000,377.67,0.00028082,120]
[423313151,1780051199000,3000.0,0.00028082,120]
[423313152,1780051203000,175.0,0.00026795,120]
[423313153,1780051304000,1125.0,0.0002808,120]
[423313154,1780051544000,201.91553342,0.00028082,120]
[423313155,1780051590000,300.0,0.00028082,120]
[423313156,1780051629000,-209.52454486,0.00011333,2]
[423313159,1780051657000,-162.44,0.00011257,2]
[423313157,1780051657000,-162.44,0.00011134,2]
[423313160,1780051657000,-134.46372514,0.00011319,2]
[423313158,1780051657000,-162.44,0.00011195,2]
[423313161,1780051683000,-27.97627486,0.00011319,2]
[423313162,1780051736000,-206.94118974,0.00011333,2]
[423313163,1780051740000,1000.0,0.00028081,120]
[423313164,1780051790000,-162.44,0.00011381,2]
[423313339,1780051842000,-151.86712148,0.00011381,2]
[423313350,1780051844000,-834.61803966,0.0001144,2]
[423313344,1780051844000,-71.63,0.00011415,2]
[423313349,1780051844000,-485.62231248,0.0001144,2]
[423313347,1780051844000,-154.63189926,0.00011433,2]
[423313348,1780051844000,-6296.99372715,0.00011433,2]
[423313345,1780051844000,-2691.44527071,0.00011419,2]
[423313346,1780051844000,-206.94118974,0.00011432,2]
[423313351,1780051844000,-162.44,0.00011442,2]
[423313352,1780051844000,-571.63,0.00011477,2]
[423313353,1780051844000,-162.44,0.00011504,2]
[423313357,1780051844000,-150.0,0.00011532,2]
[423313362,1780051844000,-182.8,0.00011623,2]
[423313361,1780051844000,-571.63,0.00011602,2]
[423313360,1780051844000,-162.44,0.00011566,2]
[423313359,1780051844000,-571.63,0.0001154,2]
[423313354,1780051844000,-49580.54410358,0.00011523,2]
[423313356,1780051844000,-1358.54243293,0.00011532,3]
[423313355,1780051844000,-202.69591255,0.00011532,3]
[423313358,1780051844000,-2000.0,0.00011533,2]
[423313398,1780051845000,-571.63,0.00011913,2]
[423313394,1780051845000,-571.63,0.00011851,2]
[423313391,1780051845000,-4000.0,0.00011819,2]
[423313393,1780051845000,-3736.47,0.00011819,2]
[423313390,1780051845000,-268.77,0.00011819,2]
[423313392,1780051845000,-2000.0,0.00011819,2]
[423313388,1780051845000,-500.0,0.00011819,2]
[423313395,1780051845000,-162.44,0.00011874,2]
[423313399,1780051845000,-3449.64,0.00011914,2]
[423313401,1780051845000,-162.44,0.00011936,2]
[423313403,1780051845000,-162.44,0.00011997,2]
[423313404,1780051845000,-485.62231245,0.00012017,2]
[423313397,1780051845000,-800.0,0.000119,4]
[423313402,1780051845000,-571.63,0.00011975,2]
[423313400,1780051845000,-150.57763146,0.00011935,7]
[423313405,1780051845000,-571.63,0.00012037,2]
[423313409,1780051845000,-4000.0,0.00012115,2]
[423313407,1780051845000,-500.0,0.00012093,2]
[423313406,1780051845000,-162.44,0.00012059,2]
[423313389,1780051845000,-2000.0,0.00011819,2]
[423313396,1780051845000,-623.18607941,0.00011879,2]
[423313387,1780051845000,-150.0,0.00011819,2]
[423313367,1780051845000,-500.0,0.00011632,2]
[423313381,1780051845000,-6296.99372713,0.00011818,2]
[423313363,1780051845000,-1852.42,0.00011623,2]
[423313365,1780051845000,-162.44,0.00011627,2]
[423313366,1780051845000,-536.16,0.00011628,2]
[423313411,1780051845000,-571.63,0.00012162,2]
[423313369,1780051845000,-1000.0,0.00011652,2]
[423313368,1780051845000,-1063.84,0.00011652,2]
[423313370,1780051845000,-571.63,0.00011664,2]
[423313371,1780051845000,-4630.82,0.00011675,2]
[423313374,1780051845000,-1494.03,0.0001172,2]
[423313372,1780051845000,-162.44,0.00011689,2]
[423313373,1780051845000,-200.0,0.000117,4]
[423313376,1780051845000,-162.44,0.00011751,2]
[423313375,1780051845000,-571.63,0.00011726,2]
[423313377,1780051845000,-571.63,0.00011788,2]
[423313378,1780051845000,-500.0,0.000118,4]
[423313379,1780051845000,-162.44,0.00011812,2]
[423313384,1780051845000,-150.0,0.00011819,2]
[423313382,1780051845000,-500.0,0.00011819,2]
[423313385,1780051845000,-200.0,0.00011819,2]
[423313380,1780051845000,-152.0,0.00011815,7]
[423313383,1780051845000,-105572.49,0.00011819,2]
[423313386,1780051845000,-357.7,0.00011819,2]
[423313410,1780051845000,-162.44,0.00012121,2]
[423313364,1780051845000,-4033.89,0.00011623,2]
[423313414,1780051845000,-6296.99372713,0.00012203,2]
[423313436,1780051845000,-500.0,0.00012206,2]
[423313441,1780051845000,-500.0,0.00012206,2]
[423313443,1780051845000,-500.0,0.00012206,2]
[423313444,1780051845000,-500.0,0.00012206,2]
[423313440,1780051845000,-500.0,0.00012206,2]
[423313439,1780051845000,-500.0,0.00012206,2]
[423313442,1780051845000,-500.0,0.00012206,2]
[423313448,1780051845000,-757.40077712,0.00012206,2]
[423313445,1780051845000,-500.0,0.00012206,2]
[423313450,1780051845000,-757.40077712,0.00012206,2]
[423313453,1780051845000,-757.40077712,0.00012206,2]
[423313449,1780051845000,-757.40077712,0.00012206,2]
[423313447,1780051845000,-234.20530718,0.00012206,2]
[423313454,1780051845000,-757.40077712,0.00012206,2]
[423313452,1780051845000,-757.40077712,0.00012206,2]
[423313446,1780051845000,-312.44179593,0.00012206,2]
[423313458,1780051845000,-757.40077712,0.00012206,2]
[423313455,1780051845000,-757.40077712,0.00012206,2]
[423313456,1780051845000,-757.40077712,0.00012206,2]
[423313457,1780051845000,-757.40077712,0.00012206,2]
[423313408,1780051845000,-571.63,0.000121,2]
[423313438,1780051845000,-500.0,0.00012206,2]
[423313437,1780051845000,-500.0,0.00012206,2]
[423313451,1780051845000,-757.40077712,0.00012206,2]
[423313433,1780051845000,-500.0,0.00012206,2]
[423313412,1780051845000,-165.72,0.00012174,2]
[423313435,1780051845000,-500.0,0.00012206,2]
[423313413,1780051845000,-162.44,0.00012182,2]
[423313416,1780051845000,-300.0,0.00012206,2]
[423313417,1780051845000,-1200.0,0.00012206,2]
[423313418,1780051845000,-509.93327649,0.00012206,2]
[423313420,1780051845000,-500.0,0.00012206,2]
[423313419,1780051845000,-500.0,0.00012206,2]
[423313424,1780051845000,-500.0,0.00012206,2]
[423313421,1780051845000,-500.0,0.00012206,2]
[423313423,1780051845000,-500.0,0.00012206,2]
[423313415,1780051845000,-300.0,0.00012206,2]
[423313427,1780051845000,-500.0,0.00012206,2]
[423313426,1780051845000,-500.0,0.00012206,2]
[423313422,1780051845000,-372.74151415,0.00012206,2]
[423313431,1780051845000,-500.0,0.00012206,2]
[423313430,1780051845000,-500.0,0.00012206,2]
[423313432,1780051845000,-500.0,0.00012206,2]
[423313434,1780051845000,-500.0,0.00012206,2]
[423313428,1780051845000,-500.0,0.00012206,2]
[423313425,1780051845000,-500.0,0.00012206,2]
[423313429,1780051845000,-500.0,0.00012206,2]
[423313493,1780051846000,-732.15408456,0.00012206,2]
[423313488,1780051846000,-732.15408456,0.00012206,2]
[423313490,1780051846000,-732.15408456,0.00012206,2]
[423313489,1780051846000,-732.15408456,0.00012206,2]
[423313492,1780051846000,-732.15408456,0.00012206,2]
[423313495,1780051846000,-732.15408456,0.00012206,2]
[423313491,1780051846000,-732.15408456,0.00012206,2]
[423313486,1780051846000,-732.15408456,0.00012206,2]
[423313494,1780051846000,-732.15408456,0.00012206,2]
[423313496,1780051846000,-732.15408456,0.00012206,2]
[423313507,1780051846000,-732.15408456,0.00012206,2]
[423313502,1780051846000,-732.15408456,0.00012206,2]
[423313498,1780051846000,-732.15408456,0.00012206,2]
[423313501,1780051846000,-732.15408456,0.00012206,2]
[423313503,1780051846000,-732.15408456,0.00012206,2]
[423313504,1780051846000,-732.15408456,0.00012206,2]
[423313499,1780051846000,-732.15408456,0.00012206,2]
[423313500,1780051846000,-732.15408456,0.00012206,2]
[423313505,1780051846000,-732.15408456,0.00012206,2]
[423313487,1780051846000,-732.15408456,0.00012206,2]